fUST/lending_fUST_20250927
["ID","MTS","AMOUNT","RATE_DAILY","PERIOD"]
[388031500,1758971447977,-151.0,0.0003589,30]
[388031501,1758971447987,-151.0,0.0003589,30]
[388031502,1758971447995,-480.0,0.0003589,9]
[388031503,1758971448004,-480.0,0.0003589,9]
[388031504,1758971448013,-480.0,0.0003589,9]
[388031505,1758971448022,-151.0,0.0003589,30]
[388031506,1758971448030,-151.0,0.0003589,30]
[388031507,1758971448039,-480.0,0.0003589,9]
[388031508,1758971448048,-151.0,0.0003589,30]
[388031509,1758971448056,-151.0,0.0003589,30]
[388031510,1758971448066,-523.54,0.0003589,9]
[388031511,1758971448075,-151.0,0.0003589,30]
[388031512,1758971448083,-151.0,0.0003589,30]
[388031513,1758971448092,-151.0,0.0003589,30]
[388031514,1758971448101,-151.0,0.0003589,30]
[388031515,1758971448110,-151.0,0.0003589,30]
[388031516,1758971448118,-151.0,0.0003589,30]
[388031517,1758971448127,-151.0,0.0003589,30]
[388031518,1758971448136,-151.0,0.0003589,30]
[388031519,1758971448145,-480.0,0.0003589,9]
[388031520,1758971448154,-512.70903039,0.0003589,9]
[388031521,1758971448164,-151.0,0.0003589,30]
[388031522,1758971448173,-480.0,0.0003589,9]
[388031523,1758971448182,-151.0,0.0003589,30]
[388031524,1758971448191,-480.0,0.0003589,9]
[388031525,1758971448201,-480.0,0.0003589,9]
[388031526,1758971448211,-480.0,0.0003589,9]
[388031527,1758971448220,-480.0,0.0003589,9]
[388031528,1758971448229,-480.0,0.0003589,9]
[388031529,1758971448238,-208.44883792,0.0003589,9]
[388031530,1758971448248,-480.0,0.0003589,9]
[388031531,1758971448257,-151.37637,0.0003589,30]
[388031532,1758971448266,-480.0,0.0003589,9]
[388031533,1758971448275,-480.0,0.0003589,9]
[388031534,1758971448284,-151.0,0.0003589,30]
[388031535,1758971448293,-151.0,0.0003589,30]
[388031536,1758971448302,-483.25230874,0.0003589,9]
[388031537,1758971448311,-151.0,0.0003589,30]
[388031538,1758971448322,-178.299297,0.0003589,30]
[388031539,1758971448331,-160.0,0.0003589,3]
[388031540,1758971448340,-480.0,0.0003589,9]
[388031541,1758971448349,-480.0,0.0003589,9]
[388031542,1758971448359,-151.0,0.0003589,30]
[388031543,1758971448368,-151.0,0.0003589,30]
[388031544,1758971448376,-480.0,0.0003589,9]
[388031545,1758971448385,-151.0,0.0003589,30]
[388031546,1758971448394,-153.726407,0.0003589,30]
[388031547,1758971448403,-151.0,0.0003589,30]
[388031548,1758971448412,-154.109286,0.0003589,30]
[388031549,1758971448422,-487.46669738,0.0003589,9]
[388031550,1758971448431,-480.0,0.0003589,7]
[388031551,1758971448440,-853.16,0.0003589,9]
[388031552,1758971448450,-480.0,0.0003589,9]
[388031553,1758971448459,-480.0,0.0003589,9]
[388031554,1758971448468,-1416.44,0.0003589,9]
[388031555,1758971448477,-480.0,0.0003589,9]
[388031556,1758971448487,-480.0,0.0003589,9]
[388031557,1758971448496,-534.58,0.0003589,9]
[388031558,1758971448505,-480.0,0.0003589,9]
[388031559,1758971448514,-480.0,0.0003589,9]
[388031560,1758971448522,-480.0,0.0003589,9]
[388031561,1758971448531,-1834.18,0.0003589,9]
[388031562,1758971448540,-130.36014603,0.0003589,9]
[388031563,1758971448794,-349.63985397,0.0003589,9]
[388031564,1758971448804,-480.0,0.0003589,9]
[388031565,1758971448813,-151.0,0.0003589,30]
[388031566,1758971448823,-480.0,0.0003589,9]
[388031567,1758971448833,-564.83,0.0003589,9]
[388031568,1758971448842,-151.0,0.0003589,30]
[388031569,1758971448851,-151.0,0.0003589,30]
[388031570,1758971448860,-190.22323486,0.0003589,30]
[388031571,1758971448870,-480.0,0.0003589,9]
[388031572,1758971448880,-480.0,0.0003589,9]
[388031573,1758971448889,-480.0,0.0003589,9]
[388031574,1758971448898,-480.0,0.0003589,9]
[388031575,1758971448907,-483.3846755,0.0003589,9]
[388031576,1758971448917,-612.87,0.0003589,9]
[388031577,1758971448926,-480.0,0.0003589,9]
[388031578,1758971448935,-580.9,0.0003589,9]
[388031579,1758971448944,-769.12,0.0003589,9]
[388031580,1758971448954,-480.0,0.0003589,9]
[388031581,1758971448963,-550.59902182,0.0003589,9]
[388031582,1758971448972,-480.0,0.0003589,9]
[388031583,1758971448981,-480.0,0.0003589,9]
[388031584,1758971448990,-480.0,0.0003589,9]
[388031585,1758971449000,-480.0,0.0003589,9]
[388031586,1758971449010,-2027.49,0.0003589,9]
[388031587,1758971449019,-480.0,0.0003589,9]
[388031588,1758971449028,-2445.06,0.0003589,9]
[388031589,1758971449037,-480.0,0.0003589,9]
[388031590,1758971449047,-480.0,0.0003589,9]
[388031591,1758971449056,-480.0,0.0003589,9]
[388031592,1758971449065,-480.0,0.0003589,9]
[388031593,1758971449074,-480.0,0.0003589,9]
[388031594,1758971449084,-480.0,0.0003589,9]
[388031595,1758971449093,-480.0,0.0003589,9]
[388031596,1758971449103,-480.0,0.0003589,9]
[388031597,1758971449113,-480.0,0.0003589,9]
[388031598,1758971449122,-480.0,0.0003589,9]
[388031599,1758971449132,-480.0,0.0003589,9]
[388031600,1758971449141,-151.0,0.0003589,30]
[388031601,1758971449151,-151.0,0.0003589,30]
[388031602,1758971449160,-480.0,0.0003589,9]
[388031603,1758971449169,-480.0,0.0003589,9]
[388031604,1758971449179,-151.0,0.0003589,30]
[388031605,1758971449188,-151.0,0.0003589,30]
[388031606,1758971449197,-151.0,0.0003589,30]
[388031607,1758971449206,-841.35,0.0003589,9]
[388031608,1758971449216,-151.0,0.0003589,30]
[388031609,1758971449225,-480.0,0.0003589,9]
[388031610,1758971449235,-151.0,0.0003589,30]
[388031611,1758971449244,-151.0,0.0003589,30]
[388031612,1758971449253,-151.0,0.0003589,30]
[388031613,1758971449262,-151.0,0.0003589,30]
[388031614,1758971449272,-260.61143113,0.0003589,9]
[388031615,1758971449282,-480.0,0.0003589,9]
[388031616,1758971449291,-480.0,0.0003589,9]
[388031617,1758971449300,-151.0,0.0003589,30]
[388031618,1758971449310,-233.33601,0.0003589,30]
[388031619,1758971449319,-151.0,0.0003589,30]
[388031620,1758971449328,-151.0,0.0003589,30]
[388031621,1758971449338,-480.0,0.0003589,9]
[388031622,1758971449347,-1556.4,0.0003589,9]
[388031623,1758971449356,-510.85785787,0.0003589,9]
[388031624,1758971449366,-497.58665775,0.0003589,9]
[388031625,1758971449375,-780.38,0.0003589,9]
[388031626,1758971449385,-556.56,0.0003589,9]
[388031627,1758971449395,-480.0,0.0003589,9]
[388031628,1758971449404,-697.7,0.0003589,9]
[388031629,1758971449415,-480.0,0.0003589,9]
[388031630,1758971449425,-820.44,0.0003589,9]
[388031631,1758971449435,-480.0,0.0003589,9]
[388031632,1758971449445,-1857.48,0.0003589,9]
[388031633,1758971449454,-480.0,0.0003589,9]
[388031634,1758971449463,-359.62302113,0.0003589,9]
[388031635,1758971449473,-480.0,0.0003589,9]
[388031636,1758971449483,-480.0,0.0003589,9]
[388031637,1758971449492,-151.0,0.0003589,30]
[388031638,1758971449501,-151.0,0.0003589,30]
[388031639,1758971449511,-151.0,0.0003589,30]
[388031640,1758971449520,-480.0,0.0003589,9]
[388031641,1758971449529,-151.0,0.0003589,30]
[388031642,1758971449538,-480.0,0.0003589,9]
[388031643,1758971449549,-151.0,0.0003589,30]
[388031644,1758971449560,-151.0,0.0003589,30]
[388031645,1758971449569,-480.0,0.0003589,9]
[388031646,1758971449578,-170.781782,0.0003589,30]
[388031647,1758971449587,-480.0,0.0003589,9]
[388031648,1758971449597,-829.950059,0.0003589,30]
[388031649,1758971449606,-480.0,0.0003589,9]
[388031650,1758971449616,-829.950059,0.0003589,30]
[388031651,1758971449626,-829.950059,0.0003589,30]
[388031652,1758971449636,-480.0,0.0003589,9]
[388031653,1758971449644,-829.950059,0.0003589,30]
[388031654,1758971449654,-1227.49,0.0003589,9]
[388031655,1758971449664,-829.950059,0.0003589,30]
[388031656,1758971449677,-829.950059,0.0003589,30]
[388031657,1758971449686,-829.950059,0.0003589,30]
[388031658,1758971449695,-829.950059,0.0003589,30]
[388031659,1758971449704,-480.0,0.0003589,9]
[388031660,1758971449713,-151.0,0.0003589,30]
[388031661,1758971449723,-151.0,0.0003589,30]
[388031662,1758971449732,-659.58,0.0003589,9]
[388031663,1758971449742,-480.0,0.0003589,9]
[388031664,1758971449751,-151.0,0.0003589,30]
[388031665,1758971449761,-151.0,0.0003589,30]
[388031666,1758971449774,-949.32,0.0003589,9]
[388031667,1758971449784,-480.0,0.0003589,9]
[388031668,1758971449794,-480.0,0.0003589,9]
[388031669,1758971449804,-480.0,0.0003589,9]
[388031670,1758971449819,-480.0,0.0003589,9]
[388031671,1758971449829,-480.0,0.0003589,9]
[388031672,1758971449839,-480.0,0.0003589,9]
[388031673,1758971449849,-480.0,0.0003589,9]
[388031674,1758971449859,-1124.4,0.0003589,9]
[388031675,1758971449869,-480.0,0.0003589,9]
[388031676,1758971449879,-480.0,0.0003589,9]
[388031677,1758971449889,-1089.8,0.0003589,9]
[388031678,1758971449900,-480.0,0.0003589,9]
[388031679,1758971449909,-752.5,0.0003589,9]
[388031680,1758971449919,-480.0,0.0003589,9]
[388031681,1758971449930,-480.0,0.0003589,9]
[388031682,1758971449940,-480.0,0.0003589,9]
[388031683,1758971449950,-480.0,0.0003589,9]
[388031684,1758971449960,-480.0,0.0003589,9]
[388031685,1758971449970,-480.0,0.0003589,9]
[388031686,1758971449981,-923.24,0.0003589,9]
[388031687,1758971449990,-480.0,0.0003589,9]
[388031688,1758971450000,-1000.0,0.0003589,9]
[388031689,1758971450010,-480.0,0.0003589,9]
[388031690,1758971450019,-361.41226678,0.0003589,9]
[388031691,1758971450028,-480.0,0.0003589,9]
[388031692,1758971450038,-480.0,0.0003589,9]
[388031693,1758971450047,-151.0,0.0003589,30]
[388031694,1758971450057,-151.0,0.0003589,30]
[388031695,1758971450066,-151.0,0.0003589,30]
[388031696,1758971450075,-642.31,0.0003589,9]
[388031697,1758971450085,-480.0,0.0003589,9]
[388031698,1758971450095,-480.0,0.0003589,9]
[388031699,1758971450104,-480.0,0.0003589,9]
[388031700,1758971450113,-480.0,0.0003589,9]
[388031701,1758971450122,-480.0,0.0003589,9]
[388031702,1758971450129,-480.0,0.0003589,9]
[388031703,1758971450137,-1010.8,0.0003589,9]
[388031704,1758971450144,-480.0,0.0003589,9]
[388031705,1758971450151,-480.0,0.0003589,9]
[388031706,1758971450160,-480.0,0.0003589,9]
[388031707,1758971450169,-480.0,0.0003589,9]
[388031708,1758971450178,-521.21,0.0003589,9]
[388031709,1758971450186,-480.0,0.0003589,9]
[388031710,1758971450195,-480.0,0.0003589,9]
[388031711,1758971450204,-480.0,0.0003589,9]
[388031712,1758971450212,-480.0,0.0003589,9]
[388031713,1758971450220,-195.86673,0.0003589,30]
[388031714,1758971450228,-195.86673,0.0003589,30]
[388031715,1758971450236,-1015.33,0.0003589,9]
[388031716,1758971450244,-480.0,0.0003589,9]
[388031717,1758971450252,-480.0,0.0003589,9]
[388031718,1758971450260,-195.86673,0.0003589,30]
[388031719,1758971450269,-195.86673,0.0003589,30]
[388031720,1758971450277,-609.96,0.0003589,9]
[388031721,1758971450285,-480.0,0.0003589,9]
[388031722,1758971450293,-596.29,0.0003589,9]
[388031723,1758971450300,-195.86673,0.0003589,30]
[388031724,1758971450307,-195.86673,0.0003589,30]
[388031725,1758971450314,-195.86673,0.0003589,30]
[388031726,1758971450321,-910.08,0.0003589,9]
[388031727,1758971450329,-195.86673,0.0003589,30]
[388031728,1758971450336,-151.0,0.0003589,30]
[388031729,1758971450343,-1706.45,0.0003589,9]
[388031730,1758971450350,-151.0,0.0003589,30]
[388031731,1758971450356,-480.0,0.0003589,9]
[388031732,1758971450364,-258.633725,0.0003589,30]
[388031733,1758971450371,-405.10195605,0.0003589,9]
[388031734,1758971450377,-480.0,0.0003589,9]
[388031735,1758971450384,-480.0,0.0003589,9]
[388031736,1758971450393,-2575.52,0.0003589,9]
[388031737,1758971450400,-873.34,0.0003589,9]
[388031738,1758971450408,-480.0,0.0003589,9]
[388031739,1758971450570,-151.0,0.0003589,30]
[388031740,1758971450579,-480.0,0.0003589,9]
[388031741,1758971450588,-480.0,0.0003589,9]
[388031742,1758971450598,-2030.7,0.0003589,9]
[388031743,1758971450607,-485.09976581,0.0003589,9]
[388031744,1758971450616,-480.0,0.0003589,9]
[388031745,1758971450625,-151.0,0.0003589,7]
[388031746,1758971450634,-480.0,0.0003589,9]
[388031747,1758971450643,-480.0,0.0003589,9]
[388031748,1758971450652,-1713.68,0.0003589,9]
[388031749,1758971450661,-480.0,0.0003589,9]
[388031750,1758971450669,-480.0,0.0003589,9]
[388031751,1758971450678,-605.28539413,0.0003589,9]
[388031752,1758971450687,-151.0,0.0003589,7]
[388031753,1758971450695,-480.0,0.0003589,9]
[388031754,1758971450704,-502.54,0.0003589,9]
[388031755,1758971450713,-480.0,0.0003589,9]
[388031756,1758971450721,-480.0,0.0003589,9]
[388031757,1758971450730,-480.0,0.0003589,9]
[388031758,1758971450740,-1094.32,0.0003589,9]
[388031759,1758971450749,-480.0,0.0003589,9]
[388031760,1758971450759,-491.24,0.0003589,9]
[388031761,1758971450767,-151.0,0.0003589,30]
[388031762,1758971450776,-151.0,0.0003589,30]
[388031763,1758971450786,-480.0,0.0003589,9]
[388031764,1758971450795,-151.0,0.0003589,30]
[388031765,1758971450804,-151.0,0.0003589,30]
[388031766,1758971450814,-1276.27,0.0003589,9]
[388031767,1758971450823,-363.849146,0.0003589,30]
[388031768,1758971450832,-151.0,0.0003589,30]
[388031769,1758971450841,-363.849146,0.0003589,30]
[388031770,1758971450850,-238.946535,0.0003589,30]
[388031771,1758971450859,-363.849146,0.0003589,30]
[388031772,1758971450867,-480.0,0.0003589,9]
[388031773,1758971450876,-363.849146,0.0003589,30]
[388031774,1758971450884,-480.0,0.0003589,9]
[388031775,1758971450894,-495.27,0.0003589,9]
[388031776,1758971450903,-363.849146,0.0003589,30]
[388031777,1758971450912,-363.849146,0.0003589,30]
[388031778,1758971450921,-480.0,0.0003589,9]
[388031779,1758971450931,-363.849146,0.0003589,30]
[388031780,1758971450941,-363.849146,0.0003589,30]
[388031781,1758971450950,-480.0,0.0003589,9]
[388031782,1758971450959,-151.0,0.0003589,30]
[388031783,1758971450968,-480.0,0.0003589,9]
[388031784,1758971450977,-151.0,0.0003589,30]
[388031785,1758971450986,-151.0,0.0003589,30]
[388031786,1758971450995,-480.0,0.0003589,9]
[388031787,1758971451005,-250.449555,0.0003589,30]
[388031788,1758971451014,-1039.35,0.0003589,9]
[388031789,1758971451023,-480.0,0.0003589,9]
[388031790,1758971451032,-480.0,0.0003589,9]
[388031791,1758971451041,-480.0,0.0003589,9]
[388031792,1758971451051,-480.0,0.0003589,9]
[388031793,1758971451061,-480.0,0.0003589,9]
[388031794,1758971451070,-480.0,0.0003589,9]
[388031795,1758971451081,-1196.13,0.0003589,9]
[388031796,1758971451091,-3038.34,0.0003589,9]
[388031797,1758971451101,-480.0,0.0003589,9]
[388031798,1758971451111,-540.91,0.0003589,9]
[388031799,1758971451120,-480.0,0.0003589,9]
[388031800,1758971451131,-480.0,0.0003589,9]
[388031801,1758971451140,-700.28,0.0003589,9]
[388031802,1758971451150,-480.0,0.0003589,9]
[388031803,1758971451159,-480.0,0.0003589,9]
[388031804,1758971451169,-480.0,0.0003589,9]
[388031805,1758971451178,-480.0,0.0003589,9]
[388031806,1758971451189,-658.19,0.0003589,9]
[388031807,1758971451199,-480.0,0.0003589,9]
[388031808,1758971451208,-480.0,0.0003589,9]
[388031809,1758971451217,-631.1,0.0003589,9]
[388031810,1758971451226,-2451.11,0.0003589,9]
[388031811,1758971451235,-480.0,0.0003589,9]
[388031812,1758971451244,-681.94,0.0003589,9]
[388031813,1758971451254,-480.0,0.0003589,9]
[388031814,1758971451264,-3832.32,0.0003589,9]
[388031815,1758971451274,-480.0,0.0003589,9]
[388031816,1758971451283,-522.85114965,0.0003589,9]
[388031817,1758971451292,-2206.18,0.0003589,9]
[388031818,1758971451302,-509.86,0.0003589,9]
[388031819,1758971451312,-480.0,0.0003589,9]
[388031820,1758971451321,-845.64,0.0003589,9]
[388031821,1758971451330,-480.0,0.0003589,9]
[388031822,1758971451339,-151.0,0.0003589,30]
[388031823,1758971451349,-151.0,0.0003589,30]
[388031824,1758971451358,-661.18,0.0003589,9]
[388031825,1758971451367,-151.0,0.0003589,30]
[388031826,1758971451377,-217.646396,0.0003589,30]
[388031827,1758971451386,-480.0,0.0003589,9]
[388031828,1758971451396,-502.52,0.0003589,9]
[388031829,1758971451405,-480.0,0.0003589,9]
[388031830,1758971451415,-480.0,0.0003589,9]
[388031831,1758971451424,-480.0,0.0003589,9]
[388031832,1758971451433,-1218.13,0.0003589,9]
[388031833,1758971451443,-1581.13,0.0003589,9]
[388031834,1758971451452,-480.0,0.0003589,9]
[388031835,1758971451461,-480.0,0.0003589,9]
[388031836,1758971451470,-480.0,0.0003589,9]
[388031837,1758971451480,-480.0,0.0003589,9]
[388031838,1758971451489,-480.0,0.0003589,9]
[388031839,1758971451498,-480.0,0.0003589,9]
[388031840,1758971451508,-480.0,0.0003589,9]
[388031841,1758971451517,-701.24,0.0003589,9]
[388031842,1758971451527,-480.0,0.0003589,9]
[388031843,1758971451536,-480.0,0.0003589,9]
[388031844,1758971451546,-480.0,0.0003589,9]
[388031845,1758971451559,-480.0,0.0003589,9]
[388031846,1758971451570,-480.0,0.0003589,9]
[388031847,1758971451579,-480.0,0.0003589,9]
[388031848,1758971451588,-490.79893532,0.0003589,9]
[388031849,1758971451598,-185.11272197,0.0003589,9]
[388031850,1758971451607,-480.0,0.0003589,9]
[388031851,1758971451616,-480.0,0.0003589,9]
[388031852,1758971451625,-1768.45,0.0003589,9]
[388031853,1758971451634,-480.0,0.0003589,9]
[388031854,1758971451644,-500.0,0.0003589,9]
[388031855,1758971451653,-488.18743789,0.0003589,9]
[388031856,1758971451662,-254.18,0.0003589,9]
[388031857,1758971451672,-480.0,0.0003589,9]
[388031858,1758971451681,-480.0,0.0003589,9]
[388031859,1758971451690,-480.0,0.0003589,9]
[388031860,1758971451699,-480.0,0.0003589,9]
[388031861,1758971451708,-480.0,0.0003589,9]
[388031862,1758971451717,-480.0,0.0003589,9]
[388031863,1758971451725,-151.0,0.0003589,30]
[388031864,1758971451731,-151.0,0.0003589,30]
[388031865,1758971451738,-537.77,0.0003589,9]
[388031866,1758971451748,-151.0,0.0003589,30]
[388031867,1758971451757,-178.411703,0.0003589,30]
[388031868,1758971451766,-480.0,0.0003589,9]
[388031869,1758971451775,-480.0,0.0003589,9]
[388031870,1758971451784,-151.0,0.0003589,30]
[388031871,1758971451794,-151.0,0.0003589,30]
[388031872,1758971451802,-151.0,0.0003589,30]
[388031873,1758971451812,-151.0,0.0003589,30]
[388031874,1758971451821,-151.0,0.0003589,30]
[388031875,1758971451830,-510.37,0.0003589,9]
[388031876,1758971451840,-480.0,0.0003589,9]
[388031877,1758971451849,-893.96,0.0003589,9]
[388031878,1758971451858,-152.216039,0.0003589,30]
[388031879,1758971451868,-480.0,0.0003589,9]
[388031880,1758971451877,-480.0,0.0003589,9]
[388031881,1758971451887,-480.0,0.0003589,9]
[388031882,1758971451896,-480.0,0.0003589,9]
[388031883,1758971451906,-480.0,0.0003589,9]
[388031884,1758971451915,-480.0,0.0003589,9]
[388031885,1758971451925,-275.61067156,0.0003589,9]
[388031886,1758971451934,-480.0,0.0003589,9]
[388031887,1758971451943,-480.0,0.0003589,9]
[388031888,1758971451953,-480.0,0.0003589,9]
[388031889,1758971451963,-480.0,0.0003589,9]
[388031890,1758971451975,-1783.09,0.0003589,9]
[388031891,1758971451984,-562.16,0.0003589,9]
[388031892,1758971451994,-480.0,0.0003589,9]
[388031893,1758971452003,-261.038761,0.0003589,30]
[388031894,1758971452012,-480.0,0.0003589,9]
[388031895,1758971452021,-480.0,0.0003589,9]
[388031896,1758971452030,-261.038761,0.0003589,30]
[388031897,1758971452039,-261.038761,0.0003589,30]
[388031898,1758971452048,-480.0,0.0003589,9]
[388031899,1758971452057,-480.0,0.0003589,9]
[388031900,1758971452066,-480.0,0.0003589,9]
[388031901,1758971452075,-480.0,0.0003589,9]
[388031902,1758971452085,-1444.71,0.0003589,9]
[388031903,1758971452094,-480.0,0.0003589,9]
[388031904,1758971452103,-480.0,0.0003589,9]
[388031905,1758971452112,-480.0,0.0003589,9]
[388031906,1758971452121,-480.0,0.0003589,9]
[388031907,1758971452131,-480.0,0.0003589,9]
[388031908,1758971452140,-480.0,0.0003589,9]
[388031909,1758971452149,-480.0,0.0003589,9]
[388031910,1758971452158,-4446.46,0.0003589,9]
[388031911,1758971452167,-480.0,0.0003589,9]
[388031912,1758971452176,-151.0,0.0003589,30]
[388031913,1758971452185,-271.30896792,0.0003589,9]
[388031914,1758971452195,-480.0,0.0003589,9]
[388031915,1758971452204,-480.0,0.0003589,9]
[388031916,1758971452213,-480.0,0.0003589,9]
[388031917,1758971452223,-1660.17,0.0003589,9]
[388031918,1758971452232,-480.0,0.0003589,9]
[388031919,1758971452241,-480.0,0.0003589,9]
[388031920,1758971452250,-480.0,0.0003589,9]
[388031921,1758971452259,-480.0,0.0003589,9]
[388031922,1758971452268,-496.97674344,0.0003589,9]
[388031923,1758971452278,-480.0,0.0003589,9]
[388031924,1758971452287,-480.0,0.0003589,9]
[388031925,1758971452296,-9230.96,0.0003589,9]
[388031926,1758971452305,-480.0,0.0003589,9]
[388031927,1758971452315,-1289.42727605,0.0003589,9]
[388031928,1758971452338,-821.57081904,0.0003589,9]
[388031929,1758971452348,-531.25030927,0.0003589,9]
[388031930,1758971452359,-1201.74159564,0.0003589,9]
[388031931,1758971452368,-480.0,0.0003589,9]
[388031932,1758971452377,-480.0,0.0003589,9]
[388031933,1758971452387,-1265.71,0.0003589,9]
[388031934,1758971452396,-480.0,0.0003589,9]
[388031935,1758971452405,-480.0,0.0003589,9]
[388031936,1758971452414,-946.49,0.0003589,9]
[388031937,1758971452424,-480.0,0.0003589,9]
[388031938,1758971452431,-151.0,0.0003589,30]
[388031939,1758971452438,-480.0,0.0003589,9]
[388031940,1758971452444,-480.0,0.0003589,9]
[388031941,1758971452451,-1848.84698116,0.0003589,9]
[388031942,1758971452610,-380.25078816,0.00028419,2]
[388031943,1758971452620,-724.01301884,0.0003589,9]
[388031944,1758971452630,-480.0,0.0003589,9]
[388031945,1758971452639,-5543.33,0.0003589,3]
[388031946,1758971452648,-480.0,0.0003589,9]
[388031947,1758971452657,-480.0,0.0003589,9]
[388031948,1758971452666,-1310.61,0.0003589,9]
[388031949,1758971452675,-859.81,0.0003589,9]
[388031950,1758971452683,-9596.68,0.0003589,9]
[388031951,1758971452692,-480.0,0.0003589,9]
[388031952,1758971452702,-1095.4,0.0003589,9]
[388031953,1758971452709,-568.21,0.0003589,9]
[388031954,1758971452716,-480.0,0.0003589,9]
[388031955,1758971452723,-480.0,0.0003589,9]
[388031956,1758971452730,-480.0,0.0003589,9]
[388031957,1758971452737,-505.86,0.0003589,9]
[388031958,1758971452744,-696.61,0.0003589,9]
[388031959,1758971452750,-222.13522148,0.0003589,9]
[388031960,1758971452805,-227.66986553,0.0003589,9]
[388031961,1758971452814,-226.28852086,0.0003589,9]
[388031962,1758971453350,-480.0,0.00035616,9]
[388031963,1758971453360,-253.71147914,0.0003589,9]
[388031964,1758971453369,-433.28852086,0.0003589,9]
[388031965,1758971453379,-46.71147914,0.0003589,9]
[388031966,1758971453389,-433.28852086,0.0003589,9]
[388031967,1758971453418,-60.57147914,0.0003589,9]
[388031968,1758971453426,-187.79736773,0.0003589,9]
[388031969,1758971453862,-480.0,0.00035616,9]
[388031970,1758971453871,-292.20263227,0.0003589,9]
[388031971,1758971453880,-2883.49074973,0.0003589,9]
[388031972,1758971454462,-1985.79218938,0.0003589,9]
[388031974,1758972000084,-297.0,0.0002,5]
[388031977,1758972352137,819.651,0.00028418,120]
[388031979,1758972430128,-370.07683091,0.00029564,2]
[388031981,1758972469893,10000.01,0.00018,2]
[388031982,1758972469914,10000.01,0.00018,2]
[388031983,1758972469936,8825.9014382,0.00018,2]
[388031985,1758972497081,227.32182254,0.00018,2]
[388031986,1758972498819,-438.34586255,0.00024703,13]
[388031991,1758972513356,946.78673926,0.00017,2]
[388031992,1758972513379,10000.01,0.00017,2]
[388031993,1758972513402,10000.01,0.00017,2]
[388031994,1758972513425,10000.01,0.00017,2]
[388031995,1758972513447,10000.01,0.00017,2]
[388031996,1758972513473,10000.01,0.00017,2]
[388031997,1758972513495,10000.01,0.00017,2]
[388031998,1758972513519,4214.05555384,0.00017,2]
[388032000,1758972518305,182.5258603,0.00018,2]
[388032002,1758972523116,5603.42858586,0.0001,2]
[388032003,1758972523137,9680.48766622,0.0001,2]
[388032004,1758972554088,-30000.03,0.0002,2]
[388032005,1758972554110,-4049.06329972,0.00024703,13]
[388032006,1758972554129,-420.02000018,0.00024953,13]
[388032007,1758972554148,-300.0,0.00025,2]
[388032008,1758972556114,-285.84211407,0.00026574,2]
[388032009,1758972556133,-229.01,0.00029416,24]
[388032010,1758972556152,-4923.8589733,0.00029565,2]
[388032011,1758972556172,-1000.0,0.00030229,30]